bitfinex/quotes_BTCUSD_20240701
["timestamp","ask_amount","ask_price","bid_price","bid_amount"]
[1719872192200,0.0002,63124.0,63123.0,2.25215493]
[1719872192409,0.0002,63124.0,63123.0,2.29948746]
[1719872193043,0.0002,63124.0,63123.0,2.25215493]
[1719872193251,0.0002,63124.0,63123.0,2.32315373]
[1719872193458,0.0002,63124.0,63123.0,2.25215493]
[1719872194386,0.0002,63124.0,63123.0,2.32315373]
[1719872195198,0.1417,63124.0,63123.0,1.60187173]
[1719872195466,0.1417,63124.0,63123.0,1.53087293]
[1719872196020,0.17285211,63124.0,63123.0,1.53087293]
[1719872196252,0.1417,63124.0,63123.0,1.53087293]
[1719872198286,0.1417,63124.0,63123.0,1.84771393]
[1719872198702,0.1417,63124.0,63123.0,1.53087293]
[1719872199170,0.1417,63124.0,63123.0,1.84771393]
[1719872204273,0.14254,63124.0,63123.0,1.84771393]
[1719872205355,0.17369211,63124.0,63123.0,1.84771393]
[1719872205812,0.14254,63124.0,63123.0,1.84771393]
[1719872207352,0.14254,63124.0,63123.0,1.84778144]
[1719872212103,0.14254,63124.0,63123.0,1.89526467]
[1719872212743,0.14254,63124.0,63123.0,1.82923076]
[1719872212860,0.14254,63124.0,63123.0,1.91238144]
[1719872213533,0.14254,63124.0,63123.0,1.95986467]
[1719872214755,0.14254,63124.0,63123.0,1.91238144]
[1719872214954,0.14254,63124.0,63123.0,1.95989533]
[1719872215473,0.14254,63124.0,63123.0,1.98365228]
[1719872215675,0.14254,63124.0,63123.0,1.91238144]
[1719872216295,0.17369427,63124.0,63123.0,1.91238144]
[1719872216647,0.14254,63124.0,63123.0,1.91238144]
[1719872218425,0.14254,63124.0,63123.0,1.98366646]
[1719872218577,0.14254,63124.0,63123.0,1.91238144]
[1719872218985,0.14254,63124.0,63123.0,1.98366646]
[1719872220310,0.14254,63124.0,63123.0,1.91238144]
[1719872220536,0.14254,63124.0,63123.0,1.98366646]
[1719872220936,0.14254,63124.0,63123.0,1.98368232]
[1719872221459,0.14254,63124.0,63123.0,1.98368257]
[1719872221902,0.07704,63124.0,63123.0,1.91705455]
[1719872222138,0.07704,63124.0,63123.0,1.91238144]
[1719872222973,0.07704,63124.0,63123.0,2.01212272]
[1719872223375,0.00104,63124.0,63123.0,2.01212272]
[1719872223599,0.00104,63124.0,63123.0,1.91705455]
[1719872224002,0.00104,63124.0,63123.0,2.01212224]
[1719872224228,0.00104,63124.0,63123.0,1.91705455]
[1719872224980,0.00104,63124.0,63123.0,2.01212224]
[1719872225837,0.00104,63124.0,63123.0,1.91715455]
[1719872226036,0.00104,63124.0,63123.0,2.01222224]
[1719872226416,0.00104,63124.0,63123.0,1.91715455]
[1719872226620,0.00104,63124.0,63123.0,2.01222224]
[1719872226835,0.00104,63124.0,63123.0,1.91715455]
[1719872227024,0.00104,63124.0,63123.0,1.91725455]
[1719872227227,0.00104,63124.0,63123.0,2.01232443]
[1719872228395,0.00104,63124.0,63123.0,1.91725455]
[1719872228600,0.00104,63124.0,63123.0,2.01232443]
[1719872229312,0.00104,63124.0,63123.0,1.91725455]
[1719872229538,0.00104,63124.0,63123.0,2.01232443]
[1719872230320,0.00104,63124.0,63123.0,2.01232516]
[1719872230523,0.00104,63124.0,63123.0,2.0123274]
[1719872230768,0.00104,63124.0,63123.0,2.00765586]
[1719872233587,0.00104,63124.0,63123.0,1.91258144]
[1719872235177,0.00104,63124.0,63123.0,2.00768007]
[1719872235437,0.00104,63124.0,63123.0,1.91258144]
[1719872236348,0.00104,63124.0,63123.0,1.91725455]
[1719872236906,0.00104,63124.0,63123.0,2.03147197]
[1719872237301,0.00104,63124.0,63123.0,1.91258144]
[1719872237505,0.00104,63124.0,63123.0,2.39899555]
[1719872238254,0.00104,63124.0,63123.0,2.84166419]
[1719872238453,0.00104,63124.0,63123.0,3.17059811]
[1719872238953,0.00104,63124.0,63123.0,3.02792947]
[1719872239122,0.00104,63124.0,63123.0,3.01792947]
[1719872239604,0.00104,63124.0,63123.0,3.16156384]
[1719872240012,0.00104,63124.0,63123.0,3.48166454]
[1719872240140,0.00104,63124.0,63123.0,3.16482354]
[1719872240343,0.00104,63124.0,63123.0,2.83688962]
[1719872241315,0.00104,63124.0,63123.0,2.82488962]
[1719872241714,0.00104,63124.0,63123.0,2.82588962]
[1719872241862,0.00104,63124.0,63123.0,2.82488962]
[1719872242262,0.00104,63124.0,63123.0,4.13068962]
[1719872242471,0.00104,63124.0,63123.0,4.31697631]
[1719872242472,1e-08,63124.0,63123.0,4.31697631]
[1719872242685,1e-08,63124.0,63123.0,3.32901731]
[1719872243477,1e-08,63124.0,63123.0,3.46058193]
[1719872244339,0.0775,63138.0,63137.0,0.21855068]
[1719872244575,0.10868445,63138.0,63137.0,1.90179906]
[1719872244783,0.0775,63138.0,63137.0,1.90179906]
[1719872244988,0.0775,63138.0,63137.0,1.94930391]
[1719872245541,0.0775,63138.0,63137.0,1.90179906]
[1719872245722,0.0775,63138.0,63137.0,1.91079906]
[1719872246254,0.0775,63138.0,63137.0,1.91579906]
[1719872246655,0.0775,63138.0,63137.0,1.92879906]
[1719872247436,0.0775,63138.0,63137.0,1.92412595]
[1719872248997,0.0775,63138.0,63137.0,1.92879906]
[1719872250123,0.0775,63138.0,63137.0,1.92869906]
[1719872250628,0.0775,63138.0,63137.0,1.85625866]
[1719872250977,0.0775,63138.0,63137.0,1.90685866]
[1719872251542,0.0775,63138.0,63137.0,1.90785866]
[1719872251724,0.0775,63138.0,63137.0,1.90685866]
[1719872251996,0.0775,63138.0,63137.0,1.84225866]
[1719872252197,0.0775,63138.0,63137.0,1.90785866]
[1719872252585,0.0775,63138.0,63137.0,1.92085866]
[1719872253753,0.0775,63138.0,63137.0,1.92075866]
[1719872254766,0.0775,63138.0,63137.0,1.92065866]
[1719872255926,0.00084,63142.0,63141.0,0.01825068]
[1719872256130,0.00084,63142.0,63141.0,2.45055917]
[1719872256332,0.0320496,63142.0,63141.0,3.00064087]
[1719872256536,0.1421,63153.0,63152.0,1.308436]
[1719872256747,0.1421,63153.0,63152.0,1.431436]
[1719872256963,0.1733096,63153.0,63152.0,1.408436]
[1719872257101,0.1733096,63153.0,63152.0,1.58902566]
[1719872257506,0.1421,63153.0,63152.0,1.58902566]
[1719872257738,0.1733096,63153.0,63152.0,1.58902566]
[1719872258601,0.1733096,63153.0,63152.0,1.60302566]
[1719872258829,0.1421,63153.0,63152.0,1.60302566]
[1719872259270,0.1421,63153.0,63152.0,1.61702566]
[1719872259731,0.1421,63153.0,63152.0,1.93372166]
[1719872260195,0.1421,63153.0,63152.0,1.93839477]
[1719872260650,0.3041603,63161.0,63160.0,1.32654668]
[1719872261319,0.4760699,63161.0,63160.0,1.32654668]
[1719872261759,0.1803296,63161.0,63160.0,1.32654668]
[1719872261958,0.1803296,63161.0,63160.0,1.33954668]
[1719872262395,0.1803296,63161.0,63160.0,1.32654668]
[1719872262560,0.1803296,63161.0,63160.0,1.33554668]
[1719872263778,0.4760699,63161.0,63160.0,1.33554668]
[1719872264124,0.4760699,63161.0,63160.0,1.34354668]
[1719872264278,0.1803296,63161.0,63160.0,1.34354668]
[1719872264476,0.1803296,63161.0,63160.0,1.34344668]
[1719872266315,0.1803296,63161.0,63160.0,1.50578566]
[1719872266515,0.4760699,63161.0,63160.0,1.48763498]
[1719872266958,0.4760699,63161.0,63160.0,1.50578566]
[1719872267538,0.4760699,63161.0,63160.0,1.50568566]
[1719872268807,0.4760699,63161.0,63160.0,1.50558566]
[1719872271075,0.4760699,63161.0,63160.0,1.49758566]
[1719872271279,0.4760699,63161.0,63160.0,1.48858566]
[1719872271475,0.4760699,63161.0,63160.0,1.49858566]
[1719872271718,0.4760699,63161.0,63160.0,1.51058566]
[1719872272036,0.77139679,63161.0,63160.0,1.49233498]
[1719872272242,0.4760699,63161.0,63160.0,1.49233498]
[1719872273226,0.77139679,63161.0,63160.0,1.329996]
[1719872273424,0.81064611,63161.0,63160.0,1.329996]
[1719872273894,0.81064611,63161.0,63160.0,1.329896]
[1719872275294,0.81064611,63161.0,63160.0,1.329996]
[1719872275488,0.83826389,63161.0,63160.0,1.329996]
[1719872277024,0.83826389,63161.0,63160.0,1.330096]
[1719872278619,0.83827006,63161.0,63160.0,1.330096]
[1719872278799,0.83837006,63161.0,63160.0,1.330096]
[1719872279776,0.83837006,63161.0,63160.0,1.01344]
[1719872280692,0.83837006,63161.0,63160.0,0.696784]
[1719872281104,0.83836657,63161.0,63160.0,0.696784]
[1719872282130,0.83836657,63161.0,63160.0,0.2222]
[1719872282434,1.65999357,63161.0,63160.0,0.0222]
[1719872282589,2.13898355,63161.0,63160.0,0.0222]
[1719872282763,2.16843421,63161.0,63160.0,0.0222]
[1719872282970,2.16843421,63161.0,63160.0,0.0122]
[1719872283428,2.16843421,63161.0,63160.0,0.0142]
[1719872283860,2.16843421,63161.0,63160.0,0.0002]
[1719872284212,2.14091375,63161.0,63160.0,0.0002]
[1719872284407,2.16850133,63161.0,63160.0,0.0002]
[1719872284612,2.16850133,63161.0,63160.0,0.0032]
[1719872284816,2.16850766,63161.0,63160.0,0.0032]
[1719872285016,2.16850766,63161.0,63160.0,0.0002]
[1719872285389,2.16850766,63161.0,63160.0,0.0012]
[1719872287513,2.16853878,63161.0,63160.0,0.0012]
[1719872290700,2.14091375,63161.0,63160.0,0.0012]
[1719872290842,2.16853364,63161.0,63160.0,0.0012]
[1719872293995,2.23313364,63161.0,63160.0,0.0012]
[1719872297604,2.20551375,63161.0,63160.0,0.0012]
[1719872297804,2.23314788,63161.0,63160.0,0.0012]
[1719872300554,2.23315708,63161.0,63160.0,0.0012]
[1719872306557,2.23305708,63161.0,63160.0,0.0012]
[1719872306971,2.20541375,63161.0,63160.0,0.0012]
[1719872307142,2.23304075,63161.0,63160.0,0.0012]
[1719872307663,2.23304078,63161.0,63160.0,0.0012]
[1719872309552,2.26683665,63161.0,63160.0,0.0012]
[1719872309718,2.26673665,63161.0,63160.0,0.0012]
[1719872310337,2.26672853,63161.0,63160.0,0.0012]
[1719872313351,2.23293984,63161.0,63160.0,0.0012]
[1719872313595,2.26668755,63161.0,63160.0,0.0012]
[1719872314539,2.26668755,63161.0,63160.0,0.0011]
[1719872316868,2.26644359,63161.0,63160.0,0.0011]
[1719872318799,2.26644359,63161.0,63160.0,0.001]
[1719872320224,2.20531375,63161.0,63160.0,0.001]
[1719872320420,2.26639931,63161.0,63160.0,0.001]
[1719872320635,2.23290727,63161.0,63160.0,0.001]
[1719872320921,2.26640188,63161.0,63160.0,0.001]
[1719872323489,2.36127305,63161.0,63160.0,0.001]
[1719872324593,2.38502279,63161.0,63160.0,0.001]
[1719872324801,2.26627406,63161.0,63160.0,0.001]
[1719872325253,2.38502279,63161.0,63160.0,0.001]
[1719872325413,2.26627406,63161.0,63160.0,0.001]
[1719872325618,1.94962306,63161.0,63160.0,0.001]
[1719872326996,1.94967429,63161.0,63160.0,0.001]
[1719872327165,2.06851601,63161.0,63160.0,0.001]
[1719872327757,1.94967429,63161.0,63160.0,0.001]
[1719872329979,1.88866275,63161.0,63160.0,0.001]
[1719872330190,1.94964465,63161.0,63160.0,0.001]
[1719872331560,2.26629565,63161.0,63160.0,0.001]
[1719872331794,2.99145708,63161.0,63160.0,0.001]
[1719872331999,1.89148151,63150.0,63139.0,0.47591475]
[1719872332189,1.89148151,63150.0,63137.0,0.000924]
[1719872332190,0.85019651,63139.0,63138.0,0.4662]
[1719872332389,0.85019651,63139.0,63137.0,0.000924]
[1719872332390,1.13546551,63138.0,63137.0,0.000924]
[1719872332590,1.19249937,63138.0,63137.0,0.000924]
[1719872332926,1.22150586,63138.0,63137.0,0.000924]
[1719872333132,1.53830915,63138.0,63137.0,0.000924]
[1719872333364,2.41238732,63138.0,63137.0,0.000924]
[1719872333872,2.31741413,63138.0,63137.0,0.000924]
[1719872334823,2.31841413,63138.0,63137.0,0.001924]
[1719872335735,2.31741413,63138.0,63137.0,0.000924]
[1719872336140,2.31841413,63138.0,63137.0,0.001924]
[1719872337092,1.98841413,63138.0,63137.0,0.001924]
[1719872337362,1.70879747,63138.0,63137.0,0.002924]
[1719872337767,1.73879747,63138.0,63137.0,0.002924]
[1719872338141,1.70879747,63138.0,63137.0,0.002924]
[1719872338760,1.64419747,63138.0,63137.0,0.002924]
[1719872338964,1.73879747,63138.0,63137.0,0.002924]
[1719872339383,1.73880747,63138.0,63137.0,0.002924]
[1719872340317,1.70880747,63138.0,63137.0,0.002924]
[1719872340717,1.73880747,63138.0,63137.0,0.002924]
[1719872342367,1.78395358,63138.0,63137.0,0.002924]
[1719872345661,1.71117698,63138.0,63137.0,0.002924]
[1719872346001,1.64657698,63138.0,63137.0,0.002924]
[1719872346207,1.71117698,63138.0,63137.0,0.002924]
[1719872347121,1.78388671,63138.0,63137.0,0.002924]
[1719872347464,1.78388708,63138.0,63137.0,0.002924]
[1719872348515,1.78391792,63138.0,63137.0,0.002924]
[1719872352767,1.78390623,63138.0,63137.0,0.002924]
[1719872353929,1.71930623,63138.0,63137.0,0.002924]
[1719872354150,1.78390623,63138.0,63137.0,0.002924]
[1719872356340,1.78390036,63138.0,63137.0,0.002924]
[1719872356717,1.78390037,63138.0,63137.0,0.002924]
[1719872360267,2.10066637,63138.0,63137.0,0.002924]
[1719872361251,2.16397276,63138.0,63137.0,0.002924]
[1719872362911,2.09124891,63138.0,63137.0,0.002924]
[1719872363109,2.16397432,63138.0,63137.0,0.002924]
[1719872363441,2.29957432,63138.0,63137.0,0.002924]
[1719872364136,2.16397432,63138.0,63137.0,0.002924]
[1719872366238,2.16396859,63138.0,63137.0,0.002924]
[1719872366617,2.16396858,63138.0,63137.0,0.002924]
[1719872367490,2.1301401,63138.0,63137.0,0.002924]
[1719872367642,2.16385409,63138.0,63137.0,0.002924]
[1719872369386,2.16363096,63138.0,63137.0,0.002924]
[1719872372695,2.16362915,63138.0,63137.0,0.002924]
[1719872375853,2.16353004,63138.0,63137.0,0.002924]
[1719872376226,2.25840803,63138.0,63137.0,0.002924]
[1719872377237,2.16353004,63138.0,63137.0,0.002924]
[1719872379015,2.05742043,63138.0,63137.0,0.002924]
[1719872379164,2.16360436,63138.0,63137.0,0.002924]
[1719872379530,2.16360193,63138.0,63137.0,0.002924]
[1719872381908,1.84683593,63138.0,63137.0,0.002924]
[1719872382294,1.84682321,63138.0,63137.0,0.002924]
[1719872382542,1.78222321,63138.0,63137.0,0.002924]
[1719872382738,1.84682321,63138.0,63137.0,0.002924]
[1719872385512,1.77418486,63138.0,63137.0,0.002924]
[1719872385640,1.84684656,63138.0,63137.0,0.002924]
[1719872388419,1.84684656,63138.0,63137.0,0.00298453]
[1719872388420,1.33774158,63138.0,63137.0,0.00298453]
[1719872388622,0.95637558,63138.0,63137.0,0.06808453]
[1719872388824,1.26507988,63138.0,63137.0,0.06808453]
[1719872389025,1.3342105,63138.0,63137.0,0.06808453]
[1719872389359,1.45308766,63138.0,63137.0,0.06808453]
[1719872389537,1.42308766,63138.0,63137.0,0.06808453]
[1719872390108,1.3042105,63138.0,63137.0,0.06808453]
[1719872390717,1.3342105,63138.0,63137.0,0.06808453]
[1719872392241,1.33415764,63138.0,63137.0,0.06808453]
[1719872392716,1.33415766,63138.0,63137.0,0.06808453]
[1719872393501,1.33415766,63138.0,63137.0,0.00298453]
[1719872393659,1.36745669,63138.0,63137.0,0.00298453]
[1719872394081,1.33415766,63138.0,63137.0,0.00298453]
[1719872395361,1.36744902,63138.0,63137.0,0.00298453]
[1719872396649,1.68421502,63138.0,63137.0,0.00298453]
[1719872397069,1.65421502,63138.0,63137.0,0.00298453]
[1719872397467,1.68421502,63138.0,63137.0,0.00298453]
[1719872398534,1.684259,63138.0,63137.0,0.00298453]
[1719872399462,1.683259,63138.0,63137.0,0.00198453]
[1719872399909,1.684259,63138.0,63137.0,0.00298453]
[1719872400102,2.46336398,63138.0,63137.0,0.00298453]
[1719872400502,2.60376398,63138.0,63137.0,0.00298453]
[1719872401116,2.60388951,63138.0,63137.0,0.00298453]
[1719872401652,2.90388951,63138.0,63137.0,0.00298453]
[1719872401771,2.53928951,63138.0,63137.0,0.00298453]
[1719872401975,2.66797368,63138.0,63137.0,0.00298453]
[1719872402794,2.96797368,63138.0,63137.0,0.00298453]
[1719872403236,3.28473968,63138.0,63137.0,0.00298453]
[1719872403521,3.55137142,63138.0,63137.0,0.00298453]
[1719872403723,3.91171358,63138.0,63137.0,0.00298453]
[1719872403874,3.91167508,63138.0,63137.0,0.00298453]
[1719872404077,3.91138355,63138.0,63137.0,0.00298453]
[1719872404301,3.74898054,63138.0,63137.0,0.00198453]
[1719872404501,3.61416452,63138.0,63137.0,0.00298453]
[1719872404701,3.75075232,63138.0,63137.0,0.00298453]
[1719872404903,3.74975232,63138.0,63137.0,0.00198453]
[1719872405848,3.75975232,63138.0,63137.0,0.00198453]
[1719872406002,3.74775232,63138.0,63137.0,0.00098453]
[1719872406205,3.76175232,63138.0,63137.0,0.00198453]
[1719872406407,3.77375232,63138.0,63137.0,0.00298453]
[1719872407170,3.60411817,63138.0,63137.0,0.00298453]
[1719872407380,3.77373303,63138.0,63137.0,0.00298453]
[1719872407625,3.70118377,63138.0,63137.0,0.00298453]
[1719872407827,3.6371485,63138.0,63137.0,0.00298453]
[1719872410335,3.60411817,63138.0,63137.0,0.00298453]
[1719872411160,3.43748643,63138.0,63137.0,0.00298453]
[1719872415037,3.470716,63138.0,63137.0,0.00298453]
[1719872418818,3.43748643,63138.0,63137.0,0.00298453]
[1719872419043,3.47081355,63138.0,63137.0,0.00298453]
[1719872420161,3.61314272,63138.0,63137.0,0.00298453]
[1719872422618,3.47068231,63138.0,63137.0,0.00298453]
[1719872423106,3.47068229,63138.0,63137.0,0.00298453]
[1719872425074,3.60734659,63138.0,63137.0,0.00298453]
[1719872425331,3.30734659,63138.0,63137.0,0.00298453]
[1719872426016,3.30739878,63138.0,63137.0,0.00298453]
[1719872429207,3.30724473,63138.0,63137.0,0.00298453]
[1719872429466,3.47305262,63138.0,63137.0,0.00298453]
[1719872430830,3.77305262,63138.0,63137.0,0.00298453]
[1719872431939,3.47305262,63138.0,63137.0,0.00298453]
[1719872432377,3.29329432,63138.0,63137.0,0.00298453]
[1719872432576,3.46302267,63138.0,63137.0,0.00298453]
[1719872435817,3.76282044,63138.0,63137.0,0.00298453]
[1719872436020,3.08065444,63138.0,63137.0,0.00298453]
[1719872436223,2.83612832,63138.0,63137.0,0.00298453]
[1719872436398,3.00582692,63138.0,63137.0,0.00298453]
[1719872438940,3.00587445,63138.0,63137.0,0.00298453]
[1719872439484,2.12870056,63138.0,63137.0,0.08418453]
[1719872439719,1.64203456,63138.0,63137.0,0.14458453]
[1719872439911,1.6094588,63138.0,63137.0,0.14458453]
[1719872440332,1.76388582,63138.0,63137.0,0.14458453]
[1719872440532,0.93575382,63138.0,63137.0,0.14458453]
[1719872440732,1.00035382,63138.0,63137.0,0.14458453]
[1719872441986,1.0000581,63138.0,63137.0,0.14458453]
[1719872442428,0.7770751,63138.0,63137.0,0.14458453]
[1719872442658,0.8416751,63138.0,63137.0,0.14458453]
[1719872443418,0.8276751,63138.0,63137.0,0.14358453]
[1719872443762,0.8396751,63138.0,63137.0,0.14458453]
[1719872444131,0.8276751,63138.0,63137.0,0.14358453]
[1719872444671,0.8386751,63138.0,63137.0,0.14458453]
[1719872444887,0.79719765,63138.0,63137.0,0.14358453]
[1719872445308,0.735923,63138.0,63137.0,0.14458453]
[1719872445541,0.80824735,63138.0,63137.0,0.14458453]
[1719872446429,0.76334464,63138.0,63137.0,0.14458453]
[1719872447574,0.76334464,63138.0,63137.0,0.30296953]
[1719872447787,0.76334464,63138.0,63137.0,0.61974053]
[1719872448463,0.76333652,63138.0,63137.0,0.61974053]
[1719872448907,0.735923,63138.0,63137.0,0.61974053]
[1719872449139,0.76333653,63138.0,63137.0,0.61974053]
[1719872449366,0.72408721,63138.0,63137.0,0.93651153]
[1719872449595,0.76333653,63138.0,63137.0,0.93651153]
[1719872450219,0.69873653,63138.0,63137.0,0.93651153]
[1719872451578,0.671323,63138.0,63137.0,0.93651153]
[1719872451809,0.69868503,63138.0,63137.0,0.93651153]
[1719872453378,0.76328503,63138.0,63137.0,0.93651153]
[1719872454990,0.76328633,63138.0,63137.0,0.93651153]
[1719872455534,0.76328633,63138.0,63137.0,0.61974053]
[1719872455949,0.72403701,63138.0,63137.0,0.61974053]
[1719872456419,0.76328633,63138.0,63137.0,0.61974053]
[1719872458068,0.76327133,63138.0,63137.0,0.61974053]
[1719872458518,0.735923,63138.0,63137.0,0.61974053]
[1719872458721,0.76328035,63138.0,63137.0,0.61974053]
[1719872460178,0.76412035,63138.0,63137.0,0.61974053]
[1719872460550,0.69952035,63138.0,63137.0,0.61974053]
[1719872463051,0.69952035,63138.0,63137.0,0.30296953]
[1719872463670,0.672163,63138.0,63137.0,0.30296953]
[1719872464027,0.69951808,63138.0,63137.0,0.30296953]
[1719872464979,0.69951808,63138.0,63137.0,0.14458453]
[1719872467251,0.74436187,63138.0,63137.0,0.14458453]
[1719872470279,0.90274487,63138.0,63137.0,0.14458453]
[1719872470704,0.90270573,63138.0,63137.0,0.14458453]
[1719872471399,1.53623773,63138.0,63137.0,0.00298453]
[1719872471851,1.56623773,63138.0,63137.0,0.00298453]
[1719872472054,1.70533773,63138.0,63137.0,0.00298453]
[1719872472286,1.73479828,63138.0,63137.0,0.00298453]
[1719872472527,2.08259991,63138.0,63137.0,0.00298453]
[1719872473142,2.14649434,63138.0,63137.0,0.00298453]
[1719872474085,2.21109434,63138.0,63137.0,0.00298453]
[1719872474349,2.14719991,63138.0,63137.0,0.00298453]
[1719872474682,2.11614746,63138.0,63137.0,0.00298453]
[1719872474852,2.14716733,63138.0,63137.0,0.00298453]
[1719872477882,2.14713574,63138.0,63137.0,0.00298453]
[1719872478146,2.17810783,63138.0,63137.0,0.00298453]
[1719872478900,2.14713574,63138.0,63137.0,0.00298453]
[1719872480755,2.11713574,63138.0,63137.0,0.00298453]
[1719872480936,2.14713574,63138.0,63137.0,0.00298453]
[1719872481159,2.14720728,63138.0,63137.0,0.00298453]
[1719872482316,2.21111934,63138.0,63137.0,0.00298453]
[1719872483866,2.11623519,63138.0,63137.0,0.00298453]
[1719872484086,2.21115489,63138.0,63137.0,0.00298453]
[1719872484300,2.11623519,63138.0,63137.0,0.00298453]
[1719872484449,2.11622504,63138.0,63137.0,0.00298453]
[1719872484868,2.11616484,63138.0,63137.0,0.00298453]
[1719872487679,2.55806755,63138.0,63137.0,0.00298453]
[1719872487890,3.68866046,63138.0,63137.0,0.00298453]
[1719872488108,0.80874451,63120.0,63119.0,0.4662]
[1719872488324,0.80874451,63120.0,63117.0,0.0824]
[1719872488325,0.77874951,63118.0,63117.0,0.0824]
[1719872488556,0.94497035,63118.0,63117.0,0.0824]
[1719872488762,0.9154809,63118.0,63117.0,0.0824]
[1719872488927,0.94887628,63118.0,63117.0,0.0824]
[1719872489524,1.26574228,63118.0,63117.0,0.0824]
[1719872489997,1.27674228,63118.0,63117.0,0.0834]
[1719872490376,1.20461089,63118.0,63117.0,0.0834]
[1719872490593,1.23158246,63118.0,63117.0,0.0834]
[1719872490958,0.91471646,63118.0,63117.0,0.0834]
[1719872491327,0.92471646,63118.0,63117.0,0.0834]
[1719872492399,0.92471646,63118.0,63117.0,0.084324]
[1719872493567,0.9247134,63118.0,63117.0,0.084324]
[1719872493974,1.2415794,63118.0,63117.0,0.084324]
[1719872494195,1.2415794,63118.0,63117.0,0.001924]
[1719872494385,1.2715794,63118.0,63117.0,0.001924]
[1719872494565,1.6532454,63118.0,63117.0,0.001924]
[1719872494741,1.697698,63118.0,63117.0,0.001924]
[1719872496388,1.773098,63118.0,63117.0,0.001924]
[1719872496763,1.70167689,63118.0,63117.0,0.001924]
[1719872496964,2.08996365,63118.0,63117.0,0.001924]
[1719872497192,2.01854289,63118.0,63117.0,0.001924]
[1719872497395,2.08996309,63118.0,63117.0,0.001924]
[1719872497814,2.05996309,63118.0,63117.0,0.001924]
[1719872498043,2.08996309,63118.0,63117.0,0.001924]
[1719872499831,2.01854289,63118.0,63117.0,0.001924]
[1719872500046,2.08998128,63118.0,63117.0,0.001924]
[1719872500520,1.99538128,63118.0,63117.0,0.001924]
[1719872500701,1.85518128,63118.0,63117.0,0.001924]
[1719872500897,1.91978128,63118.0,63117.0,0.001924]
[1719872501135,1.94978128,63118.0,63117.0,0.001924]
[1719872502925,1.91978128,63118.0,63117.0,0.001924]
[1719872503126,1.84834289,63118.0,63117.0,0.001924]
[1719872503370,1.94981753,63118.0,63117.0,0.001924]
[1719872505841,1.94932781,63118.0,63117.0,0.001924]
[1719872506221,1.97932781,63118.0,63117.0,0.001924]
[1719872506426,1.90785317,63118.0,63117.0,0.001924]
[1719872506623,1.97933592,63118.0,63117.0,0.001924]
[1719872507971,2.06053592,63118.0,63117.0,0.001924]
[1719872508414,2.2228749,63118.0,63117.0,0.001924]
[1719872509223,2.2846749,63118.0,63117.0,0.001924]
[1719872509712,2.21319215,63118.0,63117.0,0.001924]
[1719872509885,2.28468383,63118.0,63117.0,0.001924]
[1719872510090,2.21319215,63118.0,63117.0,0.001924]
[1719872510292,2.28468465,63118.0,63117.0,0.001924]
[1719872512899,2.51319215,63118.0,63117.0,0.001924]
[1719872513106,2.88468006,63118.0,63117.0,0.001924]
[1719872513306,2.91277228,63118.0,63117.0,0.001924]
[1719872513711,2.61277228,63118.0,63117.0,0.001924]
[1719872513911,2.91277228,63118.0,63117.0,0.001924]
[1719872514413,3.32963828,63118.0,63117.0,0.001924]
[1719872514637,3.39326797,63118.0,63117.0,0.001924]
[1719872514837,3.48793266,63118.0,63117.0,0.001924]
[1719872515263,3.39326797,63118.0,63117.0,0.001924]
[1719872515466,3.48793266,63118.0,63117.0,0.001924]
[1719872516305,3.48909469,63118.0,63117.0,0.001924]
[1719872516584,3.39442242,63118.0,63117.0,0.001924]
[1719872516829,3.48909469,63118.0,63117.0,0.001924]
[1719872517076,3.39442242,63118.0,63117.0,0.001924]
[1719872519544,3.30368218,63118.0,63117.0,0.001924]
[1719872520470,3.09834659,63118.0,63117.0,0.001924]
[1719872520687,2.93908218,63118.0,63117.0,0.001924]
[1719872520871,3.30368218,63118.0,63117.0,0.001924]
[1719872521270,3.00368218,63118.0,63117.0,0.001924]
[1719872522068,3.30368218,63118.0,63117.0,0.001924]
[1719872522473,3.00411036,63118.0,63117.0,0.001924]
[1719872525202,3.39878864,63118.0,63117.0,0.001924]
[1719872525422,3.09878972,63118.0,63117.0,0.001924]
[1719872526837,3.09878972,63118.0,63096.0,0.00924]
[1719872526838,0.3,63098.0,63096.0,0.00924]
[1719872527036,2.90028411,63098.0,63096.0,0.00924]
[1719872527232,2.96224437,63098.0,63096.0,0.00924]
[1719872527437,3.3738341,63098.0,63096.0,0.00924]
[1719872527936,3.27921137,63098.0,63096.0,0.00924]
[1719872528339,3.25053049,63098.0,63096.0,0.00924]
[1719872528520,3.44751898,63098.0,63097.0,0.002924]
[1719872528726,3.42382955,63098.0,63097.0,0.002924]
[1719872528924,3.32924106,63098.0,63097.0,0.000924]
[1719872529608,2.97864106,63098.0,63097.0,0.000924]
[1719872529809,3.23010742,63098.0,63097.0,0.000924]
[1719872530012,3.30870742,63098.0,63097.0,0.000924]
[1719872530515,3.27853049,63098.0,63097.0,0.000924]
[1719872531503,2.97853049,63098.0,63097.0,0.000924]
[1719872531729,3.27855655,63098.0,63097.0,0.000924]
[1719872532427,3.23389615,63098.0,63097.0,0.000924]
[1719872534883,3.16929615,63098.0,63097.0,0.000924]
[1719872535138,3.23389615,63098.0,63097.0,0.000924]
[1719872535341,2.93389615,63098.0,63097.0,0.000924]
[1719872535484,2.86929615,63098.0,63097.0,0.000924]
[1719872535687,2.93389615,63098.0,63097.0,0.000924]
[1719872536354,3.23389615,63098.0,63097.0,0.000924]
[1719872540268,2.93389615,63098.0,63097.0,0.000924]
[1719872540590,3.23389615,63098.0,63097.0,0.000924]
[1719872540791,2.93389615,63098.0,63097.0,0.000924]
[1719872541192,2.79439615,63098.0,63097.0,0.000924]
[1719872541948,3.09439615,63098.0,63097.0,0.000924]
[1719872542623,2.79439615,63098.0,63097.0,0.000924]
[1719872543749,3.09439615,63098.0,63097.0,0.000924]
[1719872546259,3.13916571,63098.0,63097.0,0.000924]
[1719872547375,2.83916571,63098.0,63097.0,0.000924]
[1719872548053,2.79439615,63098.0,63097.0,0.000924]
[1719872548268,2.83912764,63098.0,63097.0,0.000924]
[1719872549413,3.13912764,63098.0,63097.0,0.000924]
[1719872550505,2.83912764,63098.0,63097.0,0.000924]
[1719872550719,2.77452764,63098.0,63097.0,0.000924]
[1719872551167,2.83912764,63098.0,63097.0,0.000924]
[1719872551366,2.79439615,63098.0,63097.0,0.000924]
[1719872551567,2.83911695,63098.0,63097.0,0.000924]
[1719872551880,2.83911694,63098.0,63097.0,0.000924]
[1719872553305,3.13911694,63098.0,63097.0,0.000924]
[1719872553513,3.16943187,63098.0,63097.0,0.000924]
[1719872554521,3.12472257,63098.0,63097.0,0.000924]